bitfinex/quotes_ETHUSD_20240721
["timestamp","ask_amount","ask_price","bid_price","bid_amount"]
[1721532375019,0.59501496,3523.1,3523.0,3.04751756]
[1721532375509,0.59501496,3523.1,3523.0,0.20903756]
[1721532375708,1.73141384,3523.2,3523.0,0.20903756]
[1721532376012,4.15741384,3523.2,3523.1,0.20900642]
[1721532376195,4.15741384,3523.2,3522.8,2.8386]
[1721532376196,5.70649447,3523.2,3522.8,2.8386]
[1721532376403,1.43327854,3522.9,3522.8,2.8386]
[1721532376797,1.43327854,3522.9,3522.6,2.83876]
[1721532377137,1.43327233,3522.9,3522.7,2.83873]
[1721532379420,0.59527233,3522.9,3522.7,2.83873]
[1721532379817,0.59527233,3522.9,3522.8,2.83865]
[1721532383638,0.59527233,3522.9,3522.8,3.04771007]
[1721532386644,0.59527233,3522.9,3522.8,0.20906007]
[1721532386796,0.59527233,3522.9,3522.6,2.83877]
[1721532387000,0.59527233,3522.9,3522.8,0.20906007]
[1721532387202,0.59527233,3522.9,3522.7,2.8387]
[1721532387464,0.59535333,3522.8,3522.7,2.8387]
[1721532387609,0.59535333,3522.9,3522.7,2.8387]
[1721532388938,0.59535333,3522.9,3522.4,2.2688]
[1721532389139,0.59535333,3522.9,3522.2,2.84828616]
[1721532389140,0.838,3522.6,3522.2,2.84828616]
[1721532389361,0.838,3522.4,3522.0,0.59468616]
[1721532389505,0.838,3522.4,3522.1,0.98703852]
[1721532389712,0.838,3522.4,3521.9,5.09296]
[1721532389713,0.59535333,3522.4,3521.9,5.09296]
[1721532389925,0.59535333,3522.3,3522.0,0.98709102]
[1721532390149,0.59535333,3522.4,3521.9,5.09296]
[1721532390714,0.59535333,3522.3,3521.9,5.09296]
[1721532391042,0.59535333,3522.4,3521.9,5.09296]
[1721532393229,0.59535333,3522.6,3522.1,2.2536]
[1721532393410,0.59535333,3522.6,3522.2,2.83912]
[1721532393621,0.59535333,3522.7,3522.2,2.83912]
[1721532393822,0.59535333,3522.8,3522.2,2.83912]
[1721532394028,0.59535333,3522.7,3522.2,2.83912]
[1721532395555,0.59535333,3522.7,3522.3,2.83904]
[1721532396023,0.838,3522.8,3522.3,2.83904]
[1721532396024,1.43335333,3522.8,3522.3,2.83904]
[1721532398651,0.59535333,3522.7,3522.4,0.20234267]
[1721532399014,1.43335333,3522.8,3522.4,0.20234267]
[1721532399220,0.59535333,3522.7,3522.4,0.20234267]
[1721532399455,0.59535333,3522.7,3522.3,2.83904]
[1721532399660,0.59535333,3522.7,3522.5,0.20232692]
[1721532399817,0.59535333,3522.7,3522.3,2.83904]
[1721532400015,0.59535333,3522.7,3522.6,0.20231118]
[1721532400216,0.59535333,3522.7,3522.3,2.83904]
[1721532400418,0.59535333,3522.7,3522.6,0.20231118]
[1721532400618,0.59535333,3522.7,3522.3,2.83904]
[1721532400847,0.59535333,3522.7,3522.6,0.20231118]
[1721532401066,0.59535333,3522.7,3522.3,2.83904]
[1721532401217,0.59535333,3522.7,3522.6,0.20231118]
[1721532401419,1.43335333,3522.8,3522.3,2.83904]
[1721532401630,1.43335333,3522.8,3522.6,0.20231118]
[1721532401820,2.29785629,3522.8,3522.3,2.83904]
[1721532402020,2.29785629,3522.8,3522.7,0.20229543]
[1721532402363,2.29785629,3522.8,3522.3,2.83904]
[1721532402576,1.43335333,3522.8,3522.3,2.83904]
[1721532402864,1.43335333,3522.8,3522.4,0.20234267]
[1721532403022,1.43335333,3522.8,3522.3,2.83904]
[1721532403231,1.43335333,3522.8,3522.5,0.20232692]
[1721532403488,1.43335333,3522.8,3522.3,2.83904]
[1721532403931,1.43335333,3522.8,3522.4,0.20234267]
[1721532404131,2.29785629,3522.8,3522.4,0.20234267]
[1721532404531,2.29785629,3522.8,3522.3,2.83904]
[1721532404731,2.29785629,3522.8,3522.5,0.20232692]
[1721532404943,2.29785629,3522.8,3522.4,0.20234267]
[1721532405145,2.29785629,3522.8,3522.3,2.83904]
[1721532405568,2.29785629,3522.8,3522.4,0.20234267]
[1721532405770,1.42718474,3522.7,3522.4,0.20234267]
[1721532405928,1.42718474,3522.7,3522.3,2.83904]
[1721532406129,0.59535333,3522.7,3522.5,0.20232692]
[1721532406471,0.59535333,3522.7,3522.6,0.20231118]
[1721532406654,0.59535333,3522.7,3522.3,2.83904]
[1721532406839,0.59535333,3522.7,3522.6,0.20231118]
[1721532407040,0.59535333,3522.7,3522.3,2.83904]
[1721532407270,0.59535333,3522.7,3522.6,0.20231118]
[1721532407566,0.59535333,3522.7,3522.3,2.83904]
[1721532407877,1.43335333,3522.6,3522.4,0.20234267]
[1721532408071,1.43335333,3522.6,3522.2,2.83912]
[1721532408287,1.43335333,3522.6,3522.5,0.20232692]
[1721532408454,1.43335333,3522.6,3522.2,2.83912]
[1721532408655,1.43335333,3522.6,3522.5,0.20232692]
[1721532408880,1.43335333,3522.6,3522.2,2.83912]
[1721532409058,1.43335333,3522.6,3522.5,0.20230505]
[1721532409565,1.43335333,3522.6,3522.2,2.83912]
[1721532409763,1.43335333,3522.6,3522.3,0.20231725]
[1721532411474,1.43335333,3522.6,3522.1,2.2536]
[1721532411782,0.838,3522.6,3522.1,2.2536]
[1721532411982,0.838,3522.6,3522.2,0.20233429]
[1721532413626,1.43335333,3522.4,3522.2,0.20233429]
[1721532413914,1.43335333,3522.4,3521.8,2.4715]
[1721532413915,0.59535333,3522.3,3521.8,2.4715]
[1721532414123,1.43335333,3522.2,3521.7,2.83952]
[1721532414904,0.838,3522.0,3521.7,2.83952]
[1721532415108,0.838,3522.0,3521.6,2.4715]
[1721532415730,0.838,3522.0,3521.4,7.45]
[1721532415731,0.838,3521.8,3521.4,7.45]
[1721532416025,0.838,3521.8,3521.3,5.31135]
[1721532416026,0.838,3521.6,3521.3,5.31135]
[1721532417313,0.838,3521.6,3521.3,2.4715]
[1721532418115,0.838,3521.4,3521.1,2.84001]
[1721532419197,0.838,3521.4,3521.0,2.4715]
[1721532419395,0.838,3521.2,3520.7,2.8403]
[1721532419701,0.838,3521.2,3520.8,5.31173]
[1721532419928,5.88409333,3521.7,3520.9,2.84018]
[1721532419929,0.838,3521.4,3520.9,2.84018]
[1721532421693,3.04455333,3521.7,3521.0,2.84009]
[1721532422036,0.838,3521.6,3521.1,2.84]
[1721532423602,0.838,3521.6,3520.8,2.4715]
[1721532423603,0.838,3521.6,3521.0,2.84009]
[1721532429037,0.838,3521.6,3521.1,5.88279198]
[1721532429543,0.838,3521.6,3521.2,2.83991]
[1721532429894,0.838,3521.6,3521.3,0.20273593]
[1721532430200,0.838,3521.6,3521.4,0.20272018]
[1721532430412,0.838,3521.6,3521.2,2.83991]
[1721532430635,2.2634,3521.9,3521.5,0.20270442]
[1721532430946,0.838,3521.6,3521.0,2.84009]
[1721532431154,0.838,3521.4,3521.0,2.84009]
[1721532432536,0.838,3521.4,3521.1,2.84001]
[1721532435499,2.83946,3521.8,3521.1,2.84001]
[1721532435663,0.838,3521.6,3521.1,2.84001]
[1721532436242,0.838,3521.4,3521.1,2.84001]
[1721532436674,0.838,3521.4,3520.9,2.84017]
[1721532438657,3.2814,3521.4,3520.9,2.84017]
[1721532441663,0.838,3521.0,3520.6,2.3605]
[1721532443823,0.838,3521.0,3520.7,0.20287167]
[1721532444616,3.67795,3521.2,3520.7,0.20287167]
[1721532445887,2.83995,3521.2,3520.7,0.74325084]
[1721532446139,3.2814,3521.6,3520.8,2.8402]
[1721532446993,2.83976,3521.5,3520.9,0.20287876]
[1721532447536,3.67761,3521.7,3521.0,5.20058]
[1721532447899,3.67761,3521.7,3521.1,0.20283051]
[1721532447900,0.838,3521.5,3521.1,0.20283051]
[1721532451901,0.838,3521.5,3521.1,3.04283051]
[1721532455432,0.838,3521.5,3521.1,0.20283051]
[1721532455642,1.94994244,3521.5,3521.1,0.20283051]
[1721532456062,0.838,3521.2,3521.1,0.20283051]
[1721532456419,0.838,3521.2,3520.4,2.2564]
[1721532456620,0.838,3521.0,3520.4,2.2564]
[1721532456852,0.838,3521.0,3520.5,0.20292377]
[1721532457356,0.838,3521.0,3520.5,3.04341377]
[1721532457560,0.838,3521.0,3520.5,3.85746015]
[1721532458663,3.43531333,3521.2,3520.5,3.85746015]
[1721532458664,4.27331333,3521.2,3520.5,3.85746015]
[1721532459435,0.59535333,3521.0,3520.5,3.85746015]
[1721532463264,1.43335333,3520.8,3520.5,0.20292377]
[1721532463463,1.43335333,3520.8,3520.3,2.84065]
[1721532463662,1.43335333,3520.8,3520.6,0.20302644]
[1721532463866,1.43335333,3520.8,3520.4,2.84057]
[1721532463867,0.838,3520.8,3520.4,2.84057]
[1721532464163,1.43335333,3520.8,3520.7,0.20301068]
[1721532464339,1.43335333,3520.8,3520.4,2.84057]
[1721532464527,1.43335333,3520.8,3520.7,0.20301068]
[1721532464720,1.43335333,3520.8,3520.4,2.84057]
[1721532464920,1.43335333,3520.8,3520.7,0.20301068]
[1721532465119,1.43335333,3520.8,3520.4,2.84057]
[1721532465377,1.43335333,3520.8,3520.7,0.20301068]
[1721532465533,1.43335333,3520.8,3520.4,2.84057]
[1721532465731,1.43335333,3520.8,3520.7,0.20301068]
[1721532465933,1.43335333,3520.8,3520.4,2.84057]
[1721532466146,1.43335333,3520.8,3520.7,0.20301068]
[1721532466362,1.43335333,3520.8,3520.4,2.84057]
[1721532466541,1.43335333,3520.8,3520.7,0.20301068]
[1721532467066,1.43335333,3520.8,3520.4,2.84057]
[1721532467366,0.838,3520.8,3520.7,0.20301068]
[1721532467568,0.838,3520.8,3520.4,2.84057]
[1721532467569,1.43335333,3520.8,3520.4,2.84057]
[1721532468065,1.43335333,3520.8,3520.5,0.20304221]
[1721532468371,0.59535333,3520.9,3520.5,0.20304221]
[1721532469685,1.43335333,3520.8,3520.5,0.20304221]
[1721532470060,1.43335333,3520.8,3520.3,2.84065]
[1721532470245,1.43335333,3520.8,3520.6,0.20302644]
[1721532470446,0.59535333,3520.8,3520.3,2.84065]
[1721532470652,0.59535333,3520.9,3520.7,0.20301068]
[1721532470986,0.59535333,3520.9,3520.3,2.84065]
[1721532471186,0.59535333,3520.9,3520.8,0.20299492]
[1721532471385,0.59535333,3520.9,3520.3,2.84065]
[1721532471386,4.27347333,3521.0,3520.3,2.84065]
[1721532471586,4.27347333,3521.0,3520.8,0.20299492]
[1721532471904,4.27347333,3521.0,3520.3,2.84065]
[1721532471905,5.42120929,3521.0,3520.3,2.84065]
[1721532472111,4.27347333,3521.0,3520.3,2.84065]
[1721532472412,4.27347333,3521.0,3520.4,0.20305797]
[1721532472610,0.59535333,3520.9,3520.4,0.20305797]
[1721532474740,3.43555333,3520.9,3520.4,0.20305797]
[1721532474913,0.59535333,3520.8,3520.2,2.2564]
[1721532475116,0.59535333,3520.8,3520.5,0.20304221]
[1721532475313,0.59535333,3520.8,3520.2,2.2564]
[1721532475517,1.43335333,3520.8,3520.6,0.20300454]
[1721532475716,1.43335333,3520.8,3520.2,3.79522]
[1721532475717,0.838,3520.8,3520.2,2.2564]
[1721532475928,1.43335333,3520.8,3520.7,0.20298878]
[1721532476211,1.43335333,3520.8,3520.2,2.2564]
[1721532476421,1.43335333,3520.8,3520.7,0.20298878]
[1721532476719,0.838,3520.8,3520.7,0.20298878]
[1721532476896,0.838,3520.8,3520.2,2.2564]
[1721532477099,0.838,3520.8,3520.7,0.20298878]
[1721532477385,0.838,3520.8,3520.2,2.2564]
[1721532477601,3.67826,3520.8,3520.7,0.20298878]
[1721532477810,3.67826,3520.8,3520.2,2.2564]
[1721532477811,4.27361333,3520.8,3520.2,2.2564]
[1721532477987,4.27361333,3520.8,3520.7,0.20298878]
[1721532478184,2.84026,3520.8,3520.2,5.09714]
[1721532478385,2.84026,3520.8,3520.7,0.20298878]
[1721532478624,2.84026,3520.8,3520.2,5.09714]
[1721532478935,2.84026,3520.8,3520.3,2.2807]
[1721532479217,2.84026,3520.8,3520.3,2.48375183]
[1721532480318,4.27351333,3521.0,3520.3,3.04368183]
[1721532480618,4.27351333,3521.0,3520.4,2.2807]
[1721532480619,3.43551333,3521.0,3520.4,2.2807]
[1721532481121,3.43551333,3521.0,3520.6,2.2807]
[1721532481505,3.43551333,3521.0,3520.7,0.20298878]
[1721532482521,0.59535333,3521.0,3520.7,0.20298878]
[1721532485162,0.59535333,3521.1,3520.7,0.20298878]
[1721532485378,0.59535333,3521.1,3520.8,2.8402]
[1721532485668,0.59535333,3521.2,3520.8,5.1209]
[1721532485966,4.32458096,3521.7,3521.1,2.84002]
[1721532485967,1.48827114,3521.4,3521.1,2.84002]
[1721532486265,1.48504096,3521.8,3521.2,2.2807]
[1721532486266,0.59535333,3521.5,3521.2,2.2807]
[1721532486435,0.59535333,3521.5,3521.2,2.48367049]
[1721532486962,0.59535333,3521.6,3521.2,2.48367049]
[1721532487257,0.59535333,3521.6,3521.2,5.32359049]
[1721532487719,1.43335333,3521.6,3521.2,2.48367049]
[1721532488148,0.59535333,3521.4,3521.2,2.48367049]
[1721532489854,0.59535333,3521.3,3521.2,2.48367049]
[1721532490164,0.89291781,3521.5,3521.2,2.48367049]
[1721532490165,0.59535333,3521.4,3521.2,2.48367049]
[1721532490570,0.59535333,3521.3,3521.2,2.48367049]
[1721532491569,1.43335333,3521.4,3521.2,0.20297049]
[1721532491744,0.59535333,3521.3,3521.2,0.20297049]
[1721532491957,0.59535333,3521.3,3520.9,2.4812]
[1721532492572,0.59535333,3521.2,3521.0,0.20292605]
[1721532496189,2.84002,3521.1,3521.0,0.20292605]
[1721532496495,4.82276244,3521.1,3520.6,2.4812]
[1721532496697,1.43198181,3520.9,3520.3,5.32186]
[1721532497990,0.59398181,3520.8,3520.3,5.32186]
[1721532498156,1.43198181,3520.7,3520.3,5.32186]
[1721532498361,0.59398181,3520.6,3520.3,2.84066]
[1721532498607,0.59398181,3520.6,3520.1,2.4812]
[1721532498767,1.43198181,3520.5,3519.8,5.32226]
[1721532499211,0.59398181,3520.4,3519.8,5.32226]
[1721532499412,1.43198181,3520.5,3519.8,5.32226]
[1721532499710,0.838,3520.3,3519.8,5.32226]
[1721532500794,0.59398181,3520.4,3520.3,2.3164]
[1721532501113,4.3252061,3520.9,3520.3,2.3164]
[1721532501114,0.59398181,3520.7,3520.3,2.3164]
[1721532501295,1.43198181,3520.7,3520.3,2.3164]
[1721532503814,1.43198181,3520.7,3520.4,0.20308498]
[1721532504011,0.838,3520.7,3520.4,0.20308498]
[1721532504223,1.43198181,3520.7,3520.4,0.20308498]
[1721532504510,0.59398181,3520.6,3520.4,0.20308498]
[1721532504679,1.43198181,3520.7,3520.4,0.20308498]
[1721532506878,0.838,3520.7,3520.4,0.20308498]
[1721532507685,1.43198181,3520.7,3520.4,0.20308498]
[1721532507925,0.59398181,3520.8,3520.4,0.20308498]
[1721532508078,0.59398181,3520.9,3520.4,0.20308498]
[1721532508693,1.43198181,3520.9,3520.4,0.20308498]
[1721532508895,1.43198181,3520.9,3520.5,2.84049]
[1721532509194,1.43198181,3520.9,3520.5,3.04355922]
[1721532509423,1.43198181,3520.9,3520.5,0.20306922]
[1721532509624,0.59398181,3520.8,3520.5,0.20306922]
[1721532509955,0.59398181,3520.8,3520.6,0.20305346]
[1721532510096,0.59398181,3520.8,3520.3,5.15702]
[1721532510289,0.59398181,3520.8,3520.7,0.2030377]
[1721532511009,0.59398181,3520.8,3520.4,2.84057]
[1721532511210,0.59398181,3520.8,3520.7,0.2030377]
[1721532511416,0.59398181,3520.8,3520.4,2.84057]
[1721532511601,0.59398181,3520.8,3520.7,0.20307763]
[1721532511803,0.59398181,3520.8,3520.4,2.84057]
[1721532512125,1.43198181,3520.9,3520.4,2.84057]
[1721532512436,1.43198181,3520.9,3520.5,0.20310915]
[1721532513697,0.59398181,3520.8,3520.5,0.20310915]
[1721532513903,0.59398181,3520.8,3520.5,3.04359915]
[1721532514099,1.43198181,3520.9,3520.5,3.04359915]
[1721532514626,1.43198181,3520.9,3520.5,0.20310915]
[1721532514933,1.43198181,3520.9,3520.3,2.3164]
[1721532515243,1.43198181,3520.9,3520.6,0.20309339]
[1721532515400,1.43198181,3520.9,3520.3,2.3164]
[1721532515603,1.43198181,3520.9,3520.7,0.20307763]
[1721532515895,1.43198181,3520.9,3520.8,0.20306187]
[1721532516099,1.43198181,3520.9,3520.3,2.3164]
[1721532516343,0.838,3520.9,3520.8,0.20306187]
[1721532516639,0.838,3520.9,3520.4,2.84058]
[1721532516640,2.00837449,3520.9,3520.4,2.84058]
[1721532516797,1.43215886,3520.9,3520.8,0.20306187]
[1721532516994,1.43215886,3520.9,3520.4,2.84058]
[1721532517244,1.43215886,3520.9,3520.8,0.20306187]
[1721532517445,0.838,3520.9,3520.4,2.84058]
[1721532517629,0.838,3520.9,3520.8,0.20306187]
[1721532517830,1.41421563,3520.9,3520.4,2.84058]
[1721532518011,1.41421563,3520.9,3520.8,0.20306187]
[1721532518012,1.43205551,3520.9,3520.8,0.20306187]
[1721532518204,1.43205551,3520.9,3520.5,2.84049]
[1721532518401,1.43204432,3520.9,3520.8,0.20306187]
[1721532518629,1.43204432,3520.9,3520.5,2.84049]
[1721532519019,1.43204432,3520.9,3520.6,0.20309339]
[1721532519953,1.43204432,3520.9,3520.6,3.04351339]
[1721532520328,0.59404432,3520.8,3520.6,3.04351339]
[1721532520520,0.59404432,3520.8,3520.6,2.84042]
[1721532520720,0.59404432,3520.8,3520.7,0.20307763]
[1721532527258,1.43204432,3520.9,3520.7,0.20307763]
[1721532527884,0.59404432,3520.8,3520.7,0.20307763]
[1721532528617,1.43204432,3520.9,3520.7,0.20307763]
[1721532528948,0.59404432,3520.8,3520.7,0.20307763]
[1721532529449,1.43204432,3520.9,3520.7,0.20307763]
[1721532529783,1.43204432,3520.9,3520.5,2.4453]
[1721532530084,1.43204432,3520.9,3520.8,0.20305027]
[1721532530242,1.43204432,3520.9,3520.5,2.4453]
[1721532530443,1.43204432,3520.9,3520.8,0.20305027]
[1721532530764,0.838,3520.9,3520.8,0.20305027]
[1721532530962,0.838,3520.9,3520.5,2.4453]
[1721532531157,0.59412208,3520.8,3520.5,2.4453]
[1721532533286,0.59412208,3520.7,3520.5,2.4453]
[1721532533789,0.59412208,3520.8,3520.6,0.20308179]
[1721532534291,0.59412208,3520.7,3520.6,0.20308179]
[1721532534797,1.73091781,3520.7,3520.6,0.20308179]
[1721532534999,1.73091781,3520.7,3520.4,2.84053]
[1721532535303,0.59440442,3520.5,3520.4,2.84053]
[1721532535475,1.43240442,3520.5,3520.0,2.84086]
[1721532535682,0.59440442,3520.4,3520.0,4.4823947]
[1721532536409,0.59440442,3520.4,3520.0,2.84086]
[1721532540701,0.59440442,3520.3,3520.0,2.84086]
[1721532547820,1.43240442,3520.3,3520.0,2.84086]
[1721532548589,1.43240442,3520.3,3520.1,0.20320438]
[1721532551388,3.72100442,3520.3,3520.1,0.20320438]
[1721532551595,3.72100442,3520.3,3519.6,2.84123]
[1721532551596,2.84074,3520.2,3519.6,2.84121]
[1721532551833,4.48091003,3520.3,3519.5,2.473]
[1721532551834,1.43192827,3520.1,3519.7,2.84115]
[1721532552891,0.838,3520.1,3519.7,2.84115]
[1721532563608,0.838,3520.1,3519.8,0.19655722]
[1721532563843,0.838,3520.1,3519.7,2.84115]
[1721532564049,0.838,3520.1,3519.9,0.19654145]
[1721532564262,0.838,3520.1,3519.8,0.19655722]
[1721532564419,0.838,3520.1,3520.0,0.19652568]
[1721532564610,0.838,3520.1,3519.8,2.84103]
[1721532564814,0.838,3520.1,3519.9,0.19654145]
[1721532567543,0.838,3520.1,3519.9,3.03752145]
[1721532568904,0.59370057,3520.3,3519.9,2.66954145]
[1721532569175,3.72030057,3520.5,3520.2,2.84067]
[1721532569669,3.72030057,3520.5,3520.3,0.19647838]
[1721532570240,0.59370057,3520.4,3520.3,0.19647838]
[1721532570577,1.43170057,3520.4,3520.3,0.19647838]
[1721532570739,1.43170057,3520.4,3520.0,2.84089]
[1721532570740,0.838,3520.4,3520.0,2.84089]
[1721532570941,0.838,3520.1,3520.0,2.84089]
[1721532573249,0.838,3520.1,3519.8,2.84102]
[1721532574475,0.59383701,3520.2,3519.8,2.84102]
[1721532575256,0.59383701,3520.1,3519.8,2.84102]
[1721532575582,0.59383701,3520.1,3519.6,5.24968]
[1721532575778,0.59383701,3520.1,3519.7,2.84114]
[1721532577681,0.59383701,3520.0,3519.7,2.84114]
[1721532577885,0.59383701,3520.1,3519.7,2.84114]
[1721532578548,0.59383701,3520.1,3519.8,0.19655078]
[1721532578742,0.59383701,3520.1,3519.7,2.84114]
[1721532578976,0.59383701,3520.1,3519.8,0.19655078]
[1721532579182,0.59383701,3520.1,3519.7,2.84114]
[1721532579366,0.59383701,3520.1,3519.8,0.19655078]
[1721532579573,0.59383701,3520.1,3519.7,2.84114]
[1721532579759,0.59383701,3520.1,3519.8,0.19655078]
[1721532579973,1.43183701,3520.1,3519.7,2.84114]
[1721532580301,0.59383701,3520.0,3519.8,0.19655078]
[1721532580504,1.72855085,3520.1,3519.8,0.19655078]
[1721532580505,0.59383701,3519.9,3519.8,0.19655078]
[1721532580666,0.89055085,3520.0,3519.6,2.4085]
[1721532580865,0.59435889,3519.8,3519.6,2.4085]
[1721532582302,0.59435889,3519.8,3519.5,2.8413]
[1721532582303,0.59435889,3519.9,3519.5,2.8413]
[1721532585004,0.59435889,3519.6,3519.2,12.70005]
[1721532585158,0.59410304,3519.6,3519.2,12.70005]
[1721532585997,0.59410304,3519.6,3519.2,9.8585]
[1721532587193,0.59410304,3519.6,3519.2,2.4085]
[1721532587606,4.27326304,3519.7,3519.2,2.4085]
[1721532587911,0.59410304,3519.6,3519.2,2.4085]
[1721532588284,0.59410304,3519.5,3519.2,2.4085]
[1721532588680,0.59410304,3519.6,3519.2,2.4085]
[1721532591797,1.43210304,3519.7,3519.2,2.4085]
[1721532592411,0.59410304,3519.7,3519.2,2.4085]
[1721532593524,0.59410304,3519.7,3519.2,5.25004]
[1721532593815,0.59410304,3519.7,3519.3,0.19670562]
[1721532594124,0.59410304,3519.8,3519.3,0.19670562]
[1721532596124,0.59410304,3519.8,3519.4,2.4447]
[1721532596485,0.59410304,3519.8,3519.5,0.19667408]
[1721532596688,1.43210304,3519.9,3519.5,0.19667408]
[1721532597503,0.59410304,3519.8,3519.5,0.19667408]
[1721532598422,2.35127554,3519.9,3519.5,0.19667408]
[1721532598587,0.59410304,3519.8,3519.5,0.19667408]
[1721532598789,1.7571725,3519.9,3519.5,0.19667408]
[1721532599228,1.70885195,3519.9,3519.5,0.19667408]
[1721532600034,4.54984195,3519.9,3519.5,0.19667408]
[1721532600518,5.4403928,3519.9,3519.5,0.19667408]
[1721532600714,3.39108,3519.8,3519.5,0.19667408]
[1721532601504,0.838,3519.7,3519.5,0.19667408]
[1721532601710,3.71425303,3519.6,3519.5,0.19667408]
[1721532608806,4.30684934,3519.6,3519.5,0.19667408]
[1721532610352,4.55225303,3519.6,3519.5,0.19667408]
[1721532610554,4.22923,3519.6,3519.5,0.19667408]
[1721532610974,4.82182631,3519.6,3519.5,0.19667408]
[1721532611688,4.22923,3519.6,3519.5,0.19667408]
[1721532612282,4.82182631,3519.6,3519.5,0.19667408]
[1721532612500,4.22923,3519.6,3519.5,0.19667408]
[1721532612651,4.82182631,3519.6,3519.5,0.19667408]
[1721532613253,4.22923,3519.6,3519.5,0.19667408]
[1721532613749,4.82182631,3519.6,3519.5,0.19667408]
[1721532613991,4.22923,3519.6,3519.5,0.19667408]
[1721532614883,4.82182631,3519.6,3519.5,0.19667408]
[1721532617266,4.22923,3519.6,3519.5,0.19667408]
[1721532617485,4.22923,3519.6,3519.4,2.398]
[1721532617670,0.59309593,3519.5,3519.4,2.398]
[1721532617890,1.14309593,3519.5,3519.4,2.398]
[1721532618268,1.14309593,3519.5,3519.0,2.398]
[1721532618473,1.14309593,3519.5,3519.1,0.19690984]
[1721532620605,0.55,3519.4,3519.1,0.19690984]
[1721532620758,0.55,3519.4,3519.1,0.74057982]
[1721532621495,0.55,3519.4,3519.2,2.398]
[1721532621657,0.55,3519.4,3519.2,2.59489147]
[1721532622458,1.14309593,3519.4,3519.2,2.59489147]
[1721532622794,0.55,3519.4,3519.2,2.59489147]
[1721532624206,1.14309593,3519.4,3519.2,2.59489147]
[1721532624898,1.14309593,3519.4,3519.2,0.19689147]
[1721532624899,1.98109593,3519.4,3519.2,0.19689147]
[1721532625105,0.59309593,3519.3,3519.2,0.19689147]
[1721532625402,0.59309593,3519.3,3518.8,5.23987]
[1721532625577,0.59309593,3519.3,3519.2,0.19689147]
[1721532625782,0.59309593,3519.3,3518.8,5.23987]
[1721532626318,0.59309593,3519.2,3518.8,5.23987]
[1721532626508,0.59309593,3519.2,3518.9,0.1969388]
[1721532628874,0.59309593,3519.1,3518.9,0.1969388]
[1721532629211,0.59309593,3519.1,3518.9,1.76982168]
[1721532642435,0.59309593,3519.0,3518.9,0.1969388]
[1721532642642,3.67971,3519.0,3518.9,0.1969388]
[1721532642841,2.84183,3518.9,3518.6,7.45]
[1721532643045,1.43224796,3518.8,3518.6,7.45]
[1721532643217,0.59424796,3518.7,3518.6,7.45]
[1721532643565,2.84207,3518.6,3518.3,2.3111]
[1721532643744,0.59407993,3518.4,3518.3,2.3111]
[1721532644230,0.59407993,3518.4,3517.9,2.3111]
[1721532644231,1.14407993,3518.4,3517.9,2.3111]
[1721532644435,0.55,3518.3,3517.9,3.63108614]
[1721532644812,0.55,3518.4,3517.9,3.63108614]
[1721532645016,1.14407993,3518.4,3517.9,3.63108614]
[1721532645436,0.55,3518.4,3517.9,3.63108614]
[1721532646269,0.55,3518.4,3518.0,0.19714784]
[1721532647006,1.388,3518.4,3518.0,0.19714784]
[1721532649137,0.838,3518.2,3518.0,0.19714784]
[1721532649338,0.55,3518.1,3517.8,7.45]
[1721532649538,0.55,3518.1,3517.6,2.84284]
[1721532649972,0.55,3518.1,3517.7,2.84275]
[1721532650274,0.55,3518.2,3517.7,2.84275]
[1721532650580,0.55,3518.2,3518.0,2.8425]
[1721532650880,4.02928114,3518.8,3518.2,2.84235]
[1721532650881,0.55,3518.4,3518.2,2.84235]
[1721532651161,0.55,3518.7,3518.2,2.84235]
[1721532651678,0.55,3518.8,3518.2,2.84235]
[1721532652533,0.55,3518.8,3518.3,2.84224]
[1721532654178,0.54882119,3518.8,3518.3,2.84224]
[1721532657452,1.38682119,3518.8,3518.3,2.84224]
[1721532657794,1.98090112,3518.8,3518.3,2.84224]
[1721532659568,1.98090112,3518.8,3518.4,2.84219]
[1721532659901,0.54882119,3518.8,3518.5,2.3119]
[1721532660095,1.38682119,3518.8,3518.5,2.3119]
[1721532660395,0.54882119,3518.8,3518.5,2.3119]
[1721532661116,0.54882119,3518.8,3518.6,0.19708488]
[1721532664503,0.55,3518.9,3518.6,0.19708488]
[1721532665362,1.14407993,3518.9,3518.6,0.19708488]
[1721532673056,0.59407993,3518.8,3518.6,3.03911488]
[1721532673207,0.55,3518.7,3518.6,3.03911488]
[1721532673543,1.98207993,3518.9,3518.6,3.03911488]
[1721532673743,0.59407993,3518.8,3518.6,2.84203]
[1721532673947,0.55,3518.7,3518.6,2.84203]
[1721532675308,1.14407993,3518.8,3518.6,2.84203]
[1721532676141,1.14407993,3518.8,3518.7,0.19704977]
[1721532676713,3.55667993,3518.8,3518.7,0.19704977]
[1721532676914,4.66646388,3518.8,3518.4,2.84219]
[1721532677141,1.4313905,3518.7,3518.4,2.84219]
[1721532677348,0.55,3518.6,3518.4,2.84219]
[1721532677547,0.55,3518.6,3518.5,0.19706844]
[1721532678919,1.1433905,3518.6,3518.5,0.19706844]
[1721532682152,0.55,3518.6,3518.5,0.19706844]
[1721532682553,1.1433905,3518.6,3518.5,0.19706844]
[1721532685371,0.55,3518.6,3518.5,0.19706844]
[1721532685571,0.55,3518.6,3518.0,5.10016]
[1721532685572,1.1808491,3518.6,3518.1,2.84244]
[1721532685769,1.43182208,3518.3,3518.1,2.84244]
[1721532686195,0.55,3518.2,3518.1,2.84244]
[1721532689503,0.55,3518.2,3518.1,7.97468]
[1721532690013,1.14382208,3518.4,3518.3,2.84228]
[1721532691208,1.14382208,3518.4,3518.3,3.03292937]
[1721532691734,1.14382208,3518.4,3518.3,0.19064937]
[1721532691873,0.55,3518.4,3518.3,0.19064937]
[1721532692074,0.55,3518.4,3518.2,2.84235]
[1721532692393,1.14413224,3518.4,3518.3,0.19064937]
[1721532694017,0.55,3518.4,3518.3,0.19064937]
[1721532694188,1.1441386,3518.4,3518.3,0.19064937]
[1721532694378,0.55,3518.4,3518.3,0.19064937]
[1721532695425,0.55,3518.4,3518.3,3.03292937]
[1721532695426,1.14415315,3518.4,3518.3,3.03292937]
[1721532695722,1.14415315,3518.4,3518.3,5.32272937]
[1721532697685,2.02540114,3518.7,3518.4,5.6844]
[1721532697686,0.59415315,3518.5,3518.4,5.6844]